[Event "*** Titled Tuesday 3|2 Blitz (Late)"]
[Site "Chess.com"]
[Date "2016.12.06"]
[Round "8"]
[White "SwiftyMcBishop"]
[Black "AllStarShark"]
[Result "1-0"]
[WhiteElo "2125"]
[BlackElo "2308"]
[TimeControl "180+2"]
[EndTime "18:40:10 PST"]
[Termination "SwiftyMcBishop won on time"]

1. e4 {[%clk 0:03:02]} 1... e5 {[%clk 0:03:00.2]} 2. Nf3 {[%clk 0:03:01.6]} 2...
Nc6 {[%clk 0:03:01.3]} 3. Bb5 {[%clk 0:02:59.3]} 3... Nf6 {[%clk 0:03:01.8]} 4.
O-O {[%clk 0:02:57.9]} 4... Nxe4 {[%clk 0:03:01]} 5. Re1 {[%clk 0:02:58.7]} 5...
Nd6 {[%clk 0:03:01.4]} 6. Nxe5 {[%clk 0:02:59.1]} 6... Nxe5 {[%clk 0:02:55.8]}
7. Rxe5+ {[%clk 0:02:59.7]} 7... Be7 {[%clk 0:02:57.4]} 8. Ba4 {[%clk
0:02:56.8]} 8... O-O {[%clk 0:02:55.8]} 9. d4 {[%clk 0:02:57.8]} 9... Bf6 {[%clk
0:02:56.5]} 10. Re1 {[%clk 0:02:50.7]} 10... c6 {[%clk 0:02:54.9]} 11. c3 {[%clk
0:02:51.7]} 11... Ne8 {[%clk 0:02:55.7]} 12. Bc2 {[%clk 0:02:51.8]} 12... d5
{[%clk 0:02:56.8]} 13. Bf4 {[%clk 0:02:50.4]} 13... Be7 {[%clk 0:02:56.1]} 14.
Qd3 {[%clk 0:02:50.5]} 14... Nf6 {[%clk 0:02:56.2]} 15. Bg5 {[%clk 0:02:49.8]}
15... g6 {[%clk 0:02:49.7]} 16. Nd2 {[%clk 0:02:48.5]} 16... Bf5 {[%clk
0:02:50]} 17. Qe2 {[%clk 0:02:38.4]} 17... Bxc2 {[%clk 0:02:41.8]} 18. Qxe7
{[%clk 0:02:39.8]} 18... Qxe7 {[%clk 0:02:20.7]} 19. Rxe7 {[%clk 0:02:41.7]}
19... Ne4 {[%clk 0:02:20.1]} 20. Nxe4 {[%clk 0:02:39.6]} 20... Bxe4 {[%clk
0:02:22]} 21. Rxb7 {[%clk 0:02:40]} 21... Rab8 {[%clk 0:02:21.7]} 22. Rxa7
{[%clk 0:02:18.4]} 22... Rxb2 {[%clk 0:02:21.2]} 23. Re1 {[%clk 0:02:18.6]}
23... Rc2 {[%clk 0:02:18.7]} 24. f3 {[%clk 0:02:18.7]} 24... Bf5 {[%clk
0:02:18.3]} 25. Bh6 {[%clk 0:02:17.3]} 25... Rb8 {[%clk 0:02:13.3]} 26. Rae7
{[%clk 0:02:16.3]} 26... Be6 {[%clk 0:02:12.6]} 27. h4 {[%clk 0:01:59.9]} 27...
Rxa2 {[%clk 0:02:01.2]} 28. Kh2 {[%clk 0:01:55.9]} 28... Rc2 {[%clk 0:01:59.8]}
29. Rb1 {[%clk 0:01:53.5]} 29... Rc8 {[%clk 0:01:46.1]} 30. Rb3 {[%clk
0:01:52.6]} 30... Ra2 {[%clk 0:01:36.5]} 31. Rbb7 {[%clk 0:01:45.1]} 31... Raa8
{[%clk 0:01:30.7]} 32. Kg3 {[%clk 0:01:36.2]} 32... c5 {[%clk 0:01:30]} 33. Kf4
{[%clk 0:01:34.3]} 33... cxd4 {[%clk 0:01:29.3]} 34. cxd4 {[%clk 0:01:36.2]}
34... Ra4 {[%clk 0:01:11.8]} 35. Ke5 {[%clk 0:01:36.5]} 35... Ra2 {[%clk
0:01:13]} 36. g4 {[%clk 0:01:31]} 36... Ra3 {[%clk 0:01:10.4]} 37. Rbc7 {[%clk
0:01:22.7]} 37... Rd8 {[%clk 0:01:05.6]} 38. Kf4 {[%clk 0:01:04.6]} 38... Rd3
{[%clk 0:01:05.3]} 39. Bg5 {[%clk 0:00:47.3]} 39... Ra8 {[%clk 0:00:55]} 40. Bf6
{[%clk 0:00:42.7]} 40... Kf8 {[%clk 0:00:49.4]} 41. h5 {[%clk 0:00:20.5]} 41...
Raa3 {[%clk 0:00:41.7]} 42. Be5 {[%clk 0:00:11.7]} 42... Rxf3+ {[%clk
0:00:36.6]} 43. Kg5 {[%clk 0:00:13.1]} 43... gxh5 {[%clk 0:00:26.9]} 44. gxh5
{[%clk 0:00:10]} 44... Rf5+ {[%clk 0:00:26.3]} 45. Kh6 {[%clk 0:00:10.5]} 45...
Rh3 {[%clk 0:00:24.8]} 46. Bg7+ {[%clk 0:00:11.4]} 1-0

[Event "*** Titled Tuesday 3|2 Blitz (Late)"]
[Site "Chess.com"]
[Date "2016.12.06"]
[Round "8"]
[White "gmshanmeruga"]
[Black "DanielNaroditsky"]
[Result "1/2-1/2"]
[WhiteElo "2346"]
[BlackElo "2710"]
[TimeControl "180+2"]
[EndTime "18:40:34 PST"]
[Termination "Game drawn by repetition"]

1. e4 {[%clk 0:03:01.9]} 1... e5 {[%clk 0:03:00.7]} 2. Nf3 {[%clk 0:03:03.1]}
2... Nc6 {[%clk 0:03:02.1]} 3. Bb5 {[%clk 0:03:04.2]} 3... a6 {[%clk 0:03:03.4]}
4. Ba4 {[%clk 0:03:05.6]} 4... Nf6 {[%clk 0:03:03.1]} 5. O-O {[%clk 0:03:06.6]}
5... Be7 {[%clk 0:03:03.3]} 6. Re1 {[%clk 0:03:06.8]} 6... b5 {[%clk 0:03:04.4]}
7. Bb3 {[%clk 0:03:07]} 7... d6 {[%clk 0:03:05.9]} 8. c3 {[%clk 0:03:07.4]} 8...
O-O {[%clk 0:03:07.2]} 9. h3 {[%clk 0:03:07.5]} 9... Na5 {[%clk 0:03:08.6]} 10.
Bc2 {[%clk 0:03:08.2]} 10... c5 {[%clk 0:03:10.3]} 11. d4 {[%clk 0:03:09.5]}
11... Nd7 {[%clk 0:03:11.5]} 12. dxe5 {[%clk 0:03:05.3]} 12... dxe5 {[%clk
0:03:08]} 13. Nbd2 {[%clk 0:03:05.4]} 13... Bb7 {[%clk 0:03:05.7]} 14. b3 {[%clk
0:02:58.3]} 14... b4 {[%clk 0:02:52]} 15. Bb2 {[%clk 0:02:54.6]} 15... Bf6
{[%clk 0:02:44.9]} 16. Qe2 {[%clk 0:02:41.6]} 16... bxc3 {[%clk 0:02:43.1]} 17.
Bxc3 {[%clk 0:02:41.8]} 17... Nc6 {[%clk 0:02:45]} 18. Nc4 {[%clk 0:02:38.8]}
18... Nd4 {[%clk 0:02:42.8]} 19. Qd3 {[%clk 0:02:21.5]} 19... Qe7 {[%clk
0:02:33.3]} 20. Bxd4 {[%clk 0:02:05.6]} 20... cxd4 {[%clk 0:02:30.7]} 21. Nxd4
{[%clk 0:01:42.3]} 21... exd4 {[%clk 0:02:13.9]} 22. e5 {[%clk 0:00:59.9]} 22...
g6 {[%clk 0:02:14.4]} 23. exf6 {[%clk 0:00:56]} 23... Qxf6 {[%clk 0:02:16.3]}
24. Rad1 {[%clk 0:00:51.8]} 24... Rae8 {[%clk 0:02:06.6]} 25. Rxe8 {[%clk
0:00:47.8]} 25... Rxe8 {[%clk 0:02:08.5]} 26. Qxd4 {[%clk 0:00:45.5]} 26... Re1+
{[%clk 0:01:29.4]} 27. Kh2 {[%clk 0:00:45.9]} 27... Qc6 {[%clk 0:01:19]} 28. f3
{[%clk 0:00:38.9]} 28... Re2 {[%clk 0:01:11.1]} 29. Rd2 {[%clk 0:00:24.6]} 29...
Qxf3 {[%clk 0:01:07]} 30. Rxe2 {[%clk 0:00:22.6]} 30... Qxe2 {[%clk 0:01:08.9]}
31. Qd2 {[%clk 0:00:18.9]} 31... Qxd2 {[%clk 0:00:52.3]} 32. Nxd2 {[%clk
0:00:20.8]} 32... Kf8 {[%clk 0:00:48.1]} 33. Kg3 {[%clk 0:00:21.9]} 33... Ke7
{[%clk 0:00:47.2]} 34. Be4 {[%clk 0:00:20.1]} 34... Bxe4 {[%clk 0:00:41.6]} 35.
Nxe4 {[%clk 0:00:22]} 35... f5 {[%clk 0:00:42.1]} 36. Nc3 {[%clk 0:00:18.3]}
36... g5 {[%clk 0:00:41.5]} 37. Kf3 {[%clk 0:00:13.9]} 37... Kd6 {[%clk
0:00:40.8]} 38. Ke3 {[%clk 0:00:15.2]} 38... Ke5 {[%clk 0:00:38.9]} 39. g3
{[%clk 0:00:12.6]} 39... Nf6 {[%clk 0:00:35.9]} 40. b4 {[%clk 0:00:11.3]} 40...
Nd7 {[%clk 0:00:15.9]} 41. h4 {[%clk 0:00:07.5]} 41... gxh4 {[%clk 0:00:11.5]}
42. gxh4 {[%clk 0:00:09.4]} 42... Nb6 {[%clk 0:00:13.3]} 43. a4 {[%clk
0:00:10.1]} 43... Nc4+ {[%clk 0:00:10.3]} 44. Kd3 {[%clk 0:00:11.7]} 44... Nb2+
{[%clk 0:00:08.3]} 45. Ke3 {[%clk 0:00:13.2]} 45... Nc4+ {[%clk 0:00:09.9]} 46.
Kd3 {[%clk 0:00:14.6]} 46... Nd6 {[%clk 0:00:11.6]} 47. b5 {[%clk 0:00:15.5]}
47... axb5 {[%clk 0:00:12.4]} 48. Nxb5 {[%clk 0:00:16]} 48... Nb7 {[%clk
0:00:08.7]} 49. Ke3 {[%clk 0:00:15.8]} 49... Na5 {[%clk 0:00:08]} 50. Nc3 {[%clk
0:00:16.5]} 50... Nc4+ {[%clk 0:00:08.4]} 51. Kf3 {[%clk 0:00:17.3]} 51... Nd2+
{[%clk 0:00:09.5]} 52. Ke3 {[%clk 0:00:18.4]} 52... Nc4+ {[%clk 0:00:10.5]} 53.
Kf3 {[%clk 0:00:19.9]} 53... f4 {[%clk 0:00:09.5]} 54. Ne2 {[%clk 0:00:19.1]}
54... Nd2+ {[%clk 0:00:09.6]} 55. Kf2 {[%clk 0:00:20.4]} 55... Ne4+ {[%clk
0:00:08.9]} 56. Kf3 {[%clk 0:00:20.8]} 56... Nd2+ {[%clk 0:00:10.2]} 57. Kf2
{[%clk 0:00:22.3]} 57... Ne4+ {[%clk 0:00:11.8]} 58. Kf3 {[%clk 0:00:23.8]}
58... Nd2+ {[%clk 0:00:13.4]} 1/2-1/2

[Event "*** Titled Tuesday 3|2 Blitz (Late)"]
[Site "Chess.com"]
[Date "2016.12.06"]
[Round "8"]
[White "Hikaru"]
[Black "Genghis_K"]
[Result "1-0"]
[WhiteElo "2898"]
[BlackElo "2684"]
[TimeControl "180+2"]
[EndTime "18:41:04 PST"]
[Termination "Hikaru won by resignation"]

1. d4 {[%clk 0:03:02]} 1... Nf6 {[%clk 0:02:55.1]} 2. c4 {[%clk 0:03:03.2]} 2...
g6 {[%clk 0:02:56.7]} 3. Nc3 {[%clk 0:03:04]} 3... Bg7 {[%clk 0:02:58.4]} 4. e4
{[%clk 0:03:05.2]} 4... d6 {[%clk 0:03:00]} 5. Nf3 {[%clk 0:03:06.3]} 5... O-O
{[%clk 0:03:01.6]} 6. h3 {[%clk 0:03:07.9]} 6... Na6 {[%clk 0:02:58.2]} 7. Be3
{[%clk 0:03:07.7]} 7... e5 {[%clk 0:02:58.2]} 8. d5 {[%clk 0:03:08.9]} 8... Nc5
{[%clk 0:02:59.6]} 9. Nd2 {[%clk 0:03:08.6]} 9... a5 {[%clk 0:02:59.7]} 10. g4
{[%clk 0:03:09.2]} 10... c6 {[%clk 0:02:57.8]} 11. Be2 {[%clk 0:03:09.4]} 11...
a4 {[%clk 0:02:56.9]} 12. h4 {[%clk 0:03:03.4]} 12... Qa5 {[%clk 0:02:38.3]} 13.
Bxc5 {[%clk 0:02:45.4]} 13... Qxc5 {[%clk 0:02:39.3]} 14. g5 {[%clk 0:02:46.3]}
14... Nd7 {[%clk 0:02:30.3]} 15. Nxa4 {[%clk 0:02:36.8]} 15... Qa7 {[%clk
0:02:23.9]} 16. Nc3 {[%clk 0:02:37.1]} 16... f6 {[%clk 0:02:25.6]} 17. Rh2
{[%clk 0:02:20.1]} 17... Nc5 {[%clk 0:02:25.6]} 18. b4 {[%clk 0:02:11.9]} 18...
Qa3 {[%clk 0:02:26]} 19. bxc5 {[%clk 0:02:02.6]} 19... Qxc3 {[%clk 0:02:26.5]}
20. cxd6 {[%clk 0:02:03.8]} 20... cxd5 {[%clk 0:02:18.2]} 21. cxd5 {[%clk
0:02:05.7]} 21... f5 {[%clk 0:02:12.6]} 22. Rc1 {[%clk 0:01:59.6]} 22... Qb4
{[%clk 0:02:13.8]} 23. Qb3 {[%clk 0:02:00.6]} 23... Qxd6 {[%clk 0:02:08.2]} 24.
Nc4 {[%clk 0:02:01.7]} 24... Qc5 {[%clk 0:02:02.5]} 25. Qb6 {[%clk 0:02:02.6]}
25... Qd4 {[%clk 0:01:52.5]} 26. Qxd4 {[%clk 0:02:00.2]} 26... exd4 {[%clk
0:01:54.4]} 27. e5 {[%clk 0:02:01.4]} 27... b5 {[%clk 0:01:36.9]} 28. Nb6 {[%clk
0:02:00.1]} 28... Bxe5 {[%clk 0:01:38.3]} 29. Nxa8 {[%clk 0:01:56.6]} 29... Bxh2
{[%clk 0:01:39.5]} 30. Nb6 {[%clk 0:01:58.2]} 30... Ba6 {[%clk 0:01:32.2]} 31.
Nd7 {[%clk 0:01:41.1]} 31... Rd8 {[%clk 0:01:24.4]} 32. Nf6+ {[%clk 0:01:34.5]}
32... Kf7 {[%clk 0:01:24.1]} 33. a4 {[%clk 0:01:26.1]} 33... Bb7 {[%clk
0:01:24.4]} 34. Bxb5 {[%clk 0:01:21.5]} 34... h6 {[%clk 0:01:15.2]} 35. Bc4
{[%clk 0:01:10.4]} 35... hxg5 {[%clk 0:01:08.3]} 36. hxg5 {[%clk 0:01:12.3]}
36... Kg7 {[%clk 0:01:09.5]} 37. Rb1 {[%clk 0:01:11.8]} 37... Ba8 {[%clk
0:01:08.3]} 38. Rb6 {[%clk 0:00:36.3]} 38... Bf4 {[%clk 0:01:03.9]} 39. d6
{[%clk 0:00:35.2]} 39... Bxg5 {[%clk 0:00:55]} 40. Nd5 {[%clk 0:00:36.5]} 40...
d3 {[%clk 0:00:46.2]} 41. Nc7 {[%clk 0:00:24.2]} 41... d2+ {[%clk 0:00:47.2]}
42. Kd1 {[%clk 0:00:25.7]} 42... Bf3+ {[%clk 0:00:27.2]} 43. Be2 {[%clk
0:00:26.3]} 43... Bxe2+ {[%clk 0:00:28.8]} 44. Kxe2 {[%clk 0:00:28.2]} 44... Kf7
{[%clk 0:00:30.4]} 45. a5 {[%clk 0:00:27]} 45... Rh8 {[%clk 0:00:25.8]} 46. Rb1
{[%clk 0:00:27.5]} 46... Rh4 {[%clk 0:00:25.1]} 47. a6 {[%clk 0:00:27.4]} 47...
Ra4 {[%clk 0:00:19.7]} 48. Rh1 {[%clk 0:00:24.3]} 48... Bf4 {[%clk 0:00:13.6]}
49. Nb5 {[%clk 0:00:15.7]} 49... Rxa6 {[%clk 0:00:12.7]} 50. Rh7+ {[%clk
0:00:17.1]} 50... Ke6 {[%clk 0:00:11]} 51. Nc7+ {[%clk 0:00:17.6]} 51... Kxd6
{[%clk 0:00:09.7]} 52. Nxa6 {[%clk 0:00:19.5]} 52... g5 {[%clk 0:00:09.9]} 53.
Nb4 {[%clk 0:00:21]} 53... g4 {[%clk 0:00:10.6]} 54. Nd3 {[%clk 0:00:22.7]}
54... Bg5 {[%clk 0:00:12.2]} 55. Rg7 {[%clk 0:00:24.2]} 55... Bf6 {[%clk
0:00:11.7]} 56. Rg6 {[%clk 0:00:25.3]} 56... Ke7 {[%clk 0:00:13.2]} 57. Rh6
{[%clk 0:00:25.4]} 57... Kf7 {[%clk 0:00:13.4]} 58. Rh5 {[%clk 0:00:26]} 58...
Ke6 {[%clk 0:00:07.9]} 59. Kxd2 {[%clk 0:00:25.8]} 59... Bd4 {[%clk 0:00:09.4]}
60. Ke2 {[%clk 0:00:26.9]} 60... Kf6 {[%clk 0:00:10.1]} 61. f3 {[%clk
0:00:28.1]} 61... g3 {[%clk 0:00:11.1]} 62. Kf1 {[%clk 0:00:29.2]} 62... Kg6
{[%clk 0:00:11.1]} 63. Rh3 {[%clk 0:00:31.1]} 63... Kg5 {[%clk 0:00:10.6]} 64.
Rxg3+ {[%clk 0:00:31.9]} 64... Kf6 {[%clk 0:00:12.3]} 65. Kg2 {[%clk 0:00:33.8]}
1-0

[Event "*** Titled Tuesday 3|2 Blitz (Late)"]
[Site "Chess.com"]
[Date "2016.12.06"]
[Round "8"]
[White "Divertissement"]
[Black "KNVB"]
[Result "0-1"]
[WhiteElo "2425"]
[BlackElo "2548"]
[TimeControl "180+2"]
[EndTime "18:42:09 PST"]
[Termination "KNVB won by checkmate"]

1. e4 {[%clk 0:03:02]} 1... b6 {[%clk 0:02:56.1]} 2. d4 {[%clk 0:03:00.6]} 2...
Bb7 {[%clk 0:02:55.8]} 3. Nc3 {[%clk 0:03:02.2]} 3... e6 {[%clk 0:02:56.3]} 4.
a3 {[%clk 0:03:03.6]} 4... g6 {[%clk 0:02:56.6]} 5. Be3 {[%clk 0:03:01.4]} 5...
Bg7 {[%clk 0:02:55.8]} 6. h3 {[%clk 0:03:00.2]} 6... d6 {[%clk 0:02:57]} 7. g4
{[%clk 0:03:01]} 7... h5 {[%clk 0:02:58]} 8. gxh5 {[%clk 0:02:54.1]} 8... Rxh5
{[%clk 0:02:57.9]} 9. Bg2 {[%clk 0:02:54.2]} 9... Nd7 {[%clk 0:02:58.2]} 10.
Nge2 {[%clk 0:02:54.7]} 10... Ngf6 {[%clk 0:02:58.3]} 11. Ng3 {[%clk 0:02:55.7]}
11... Rh8 {[%clk 0:02:58.6]} 12. Qe2 {[%clk 0:02:55.2]} 12... Nh5 {[%clk
0:02:59.7]} 13. O-O-O {[%clk 0:02:52.8]} 13... Qh4 {[%clk 0:02:59.7]} 14. Nb5
{[%clk 0:02:45]} 14... Nf4 {[%clk 0:02:53.2]} 15. Bxf4 {[%clk 0:02:17.4]} 15...
Qxf4+ {[%clk 0:02:55.1]} 16. Kb1 {[%clk 0:02:18.9]} 16... Kd8 {[%clk 0:02:39.4]}
17. Rd3 {[%clk 0:01:28]} 17... Qh4 {[%clk 0:02:18]} 18. Rf3 {[%clk 0:01:23.2]}
18... Rf8 {[%clk 0:02:17.2]} 19. Qc4 {[%clk 0:01:20.8]} 19... Rc8 {[%clk
0:01:09.6]} 20. Nxa7 {[%clk 0:01:20.4]} 20... Ra8 {[%clk 0:01:11.2]} 21. Nb5
{[%clk 0:01:09.2]} 21... Rc8 {[%clk 0:01:11.5]} 22. Rc3 {[%clk 0:01:02.5]} 22...
Ba6 {[%clk 0:01:09.5]} 23. Qa4 {[%clk 0:00:26.9]} 23... Bxb5 {[%clk 0:01:09]}
24. Qxb5 {[%clk 0:00:28.8]} 24... Bxd4 {[%clk 0:01:09.2]} 25. Rf3 {[%clk
0:00:18.6]} 25... Ne5 {[%clk 0:01:06.3]} 26. Rb3 {[%clk 0:00:19.4]} 26... Bxf2
{[%clk 0:01:06.8]} 27. Ne2 {[%clk 0:00:17.8]} 27... Qg5 {[%clk 0:01:06.7]} 28.
Rd1 {[%clk 0:00:16.8]} 28... Qxg2 {[%clk 0:01:04.4]} 29. Qxe5 {[%clk 0:00:17.9]}
29... Ke7 {[%clk 0:00:59.6]} 30. Qc3 {[%clk 0:00:14.4]} 30... Bc5 {[%clk
0:00:46.8]} 31. Nf4 {[%clk 0:00:13]} 31... Qxe4 {[%clk 0:00:44.5]} 32. Rf1
{[%clk 0:00:14.4]} 32... Bd4 {[%clk 0:00:29.8]} 33. Qb4 {[%clk 0:00:07.5]} 33...
Qe5 {[%clk 0:00:10.7]} 34. Nd3 {[%clk 0:00:06.8]} 34... Qd5 {[%clk 0:00:10.4]}
35. Re1 {[%clk 0:00:06.5]} 35... Bc5 {[%clk 0:00:07.1]} 36. Qd2 {[%clk
0:00:06.9]} 36... Kd7 {[%clk 0:00:06.5]} 37. Qf4 {[%clk 0:00:07.6]} 37... g5
{[%clk 0:00:06.6]} 38. Qg3 {[%clk 0:00:08.4]} 38... Rg8 {[%clk 0:00:05.7]} 39.
Rd1 {[%clk 0:00:09.8]} 39... Qf5 {[%clk 0:00:05.9]} 40. Ne5+ {[%clk 0:00:09.1]}
40... Ke8 {[%clk 0:00:04.7]} 41. Nd3 {[%clk 0:00:09.9]} 41... d5 {[%clk
0:00:04.5]} 42. Qg2 {[%clk 0:00:10.5]} 42... Bd6 {[%clk 0:00:05.6]} 43. Rf1
{[%clk 0:00:11.5]} 43... Qe4 {[%clk 0:00:07.3]} 44. Qf2 {[%clk 0:00:12.9]} 44...
Rf8 {[%clk 0:00:06]} 45. Nc1 {[%clk 0:00:13.4]} 45... Kd7 {[%clk 0:00:06.6]} 46.
Re3 {[%clk 0:00:14.1]} 46... Qg6 {[%clk 0:00:07.6]} 47. Rf3 {[%clk 0:00:14.6]}
47... f5 {[%clk 0:00:08.9]} 48. Nb3 {[%clk 0:00:15.7]} 48... f4 {[%clk 0:00:08]}
49. Qe2 {[%clk 0:00:16.9]} 49... e5 {[%clk 0:00:08.7]} 50. Qb5+ {[%clk 0:00:18]}
50... c6 {[%clk 0:00:10.3]} 51. Qxb6 {[%clk 0:00:18.4]} 51... e4 {[%clk
0:00:09.2]} 52. Rc3 {[%clk 0:00:19.6]} 52... e3 {[%clk 0:00:08]} 53. Nd4 {[%clk
0:00:19.9]} 53... Be5 {[%clk 0:00:04]} 54. Rd3 {[%clk 0:00:11]} 54... Bxd4
{[%clk 0:00:04.3]} 55. Rxd4 {[%clk 0:00:12.9]} 55... Qd6 {[%clk 0:00:04]} 56.
Qb3 {[%clk 0:00:12.8]} 56... Rfe8 {[%clk 0:00:04.6]} 57. Qd3 {[%clk 0:00:14.2]}
57... Re5 {[%clk 0:00:05.3]} 58. Re1 {[%clk 0:00:15.6]} 58... Rce8 {[%clk
0:00:05.2]} 59. Ra4 {[%clk 0:00:17.2]} 59... Re4 {[%clk 0:00:03.7]} 60. Ra7+
{[%clk 0:00:18.4]} 60... Ke6 {[%clk 0:00:05.1]} 61. h4 {[%clk 0:00:19.1]} 61...
f3 {[%clk 0:00:05.2]} 62. Qf1 {[%clk 0:00:20.4]} 62... f2 {[%clk 0:00:05.3]} 63.
Re2 {[%clk 0:00:20.4]} 63... g4 {[%clk 0:00:05.8]} 64. h5 {[%clk 0:00:21.3]}
64... Qh2 {[%clk 0:00:05.7]} 65. Ka2 {[%clk 0:00:20]} 65... Qg1 {[%clk
0:00:06.5]} 66. Rxf2 {[%clk 0:00:21.5]} 66... exf2 {[%clk 0:00:05]} 67. Qa6
{[%clk 0:00:23]} 67... f1=Q {[%clk 0:00:04]} 68. Qxc6+ {[%clk 0:00:24.1]} 68...
Ke5 {[%clk 0:00:05.4]} 69. Qc7+ {[%clk 0:00:20.7]} 69... Kf5 {[%clk 0:00:03.4]}
70. Qf7+ {[%clk 0:00:08.7]} 70... Kg5 {[%clk 0:00:04.6]} 71. Qg7+ {[%clk
0:00:08.5]} 71... Kh4 {[%clk 0:00:06]} 72. b3 {[%clk 0:00:04.5]} 72... Qb1#
{[%clk 0:00:06.6]} 0-1

[Event "*** Titled Tuesday 3|2 Blitz (Late)"]
[Site "Chess.com"]
[Date "2016.12.06"]
[Round "9"]
[White "micfel"]
[Black "calemcc"]
[Result "1-0"]
[WhiteElo "2275"]
[BlackElo "2101"]
[TimeControl "180+2"]
[EndTime "18:46:30 PST"]
[Termination "micfel won by resignation"]

1. e4 {[%clk 0:02:59.1]} 1... e6 {[%clk 0:02:57.6]} 2. d4 {[%clk 0:02:59.7]}
2... d5 {[%clk 0:02:59.5]} 3. Nd2 {[%clk 0:02:59.6]} 3... Nc6 {[%clk 0:02:55.4]}
4. c3 {[%clk 0:03:00.1]} 4... e5 {[%clk 0:02:56.2]} 5. dxe5 {[%clk 0:02:58.6]}
5... dxe4 {[%clk 0:02:55.1]} 6. Bb5 {[%clk 0:02:57.9]} 6... Qd5 {[%clk 0:02:47]}
7. Qe2 {[%clk 0:02:52.9]} 7... Bd7 {[%clk 0:02:44.7]} 8. Nxe4 {[%clk 0:02:44.2]}
8... O-O-O {[%clk 0:02:25.8]} 9. Nf3 {[%clk 0:02:39.8]} 9... Nxe5 {[%clk
0:02:23.2]} 10. Bxd7+ {[%clk 0:02:39.1]} 10... Rxd7 {[%clk 0:02:21]} 11. O-O
{[%clk 0:02:35]} 11... f5 {[%clk 0:02:09.3]} 12. Neg5 {[%clk 0:02:32.3]} 12...
Nxf3+ {[%clk 0:02:09.5]} 13. Nxf3 {[%clk 0:02:32.3]} 13... Nf6 {[%clk
0:02:09.4]} 14. Be3 {[%clk 0:02:29.5]} 14... Bd6 {[%clk 0:02:04.5]} 15. Rfd1
{[%clk 0:02:25.1]} 15... Qe6 {[%clk 0:01:56.4]} 16. Qc2 {[%clk 0:02:24.9]} 16...
f4 {[%clk 0:01:52.1]} 17. Bd4 {[%clk 0:02:23.5]} 17... h5 {[%clk 0:01:41.5]} 18.
Re1 {[%clk 0:02:19.6]} 18... Qg4 {[%clk 0:01:41.2]} 19. h3 {[%clk 0:02:19.3]}
1-0

[Event "*** Titled Tuesday 3|2 Blitz (Late)"]
[Site "Chess.com"]
[Date "2016.12.06"]
[Round "9"]
[White "DanielNaroditsky"]
[Black "Hikaru"]
[Result "1/2-1/2"]
[WhiteElo "2714"]
[BlackElo "2894"]
[TimeControl "180+2"]
[EndTime "18:47:09 PST"]
[Termination "Game drawn by agreement"]

1. d4 {[%clk 0:03:01.9]} 1... Nf6 {[%clk 0:03:00.5]} 2. Bf4 {[%clk 0:03:00.4]}
2... e6 {[%clk 0:03:01.1]} 3. e3 {[%clk 0:03:01.5]} 3... Bd6 {[%clk 0:03:02.4]}
4. Be5 {[%clk 0:03:00.5]} 4... O-O {[%clk 0:03:03.5]} 5. Nf3 {[%clk 0:03:01.3]}
5... Bxe5 {[%clk 0:03:05.1]} 6. dxe5 {[%clk 0:03:02.4]} 6... Ne8 {[%clk
0:03:07]} 7. Bd3 {[%clk 0:03:02]} 7... f6 {[%clk 0:03:08.5]} 8. exf6 {[%clk
0:02:38.2]} 8... Qxf6 {[%clk 0:03:10.4]} 9. Nc3 {[%clk 0:02:39.9]} 9... d5
{[%clk 0:03:11.3]} 10. O-O {[%clk 0:02:39.4]} 10... c5 {[%clk 0:03:07.5]} 11. e4
{[%clk 0:02:40.2]} 11... d4 {[%clk 0:03:08.9]} 12. e5 {[%clk 0:02:39]} 12... Qh6
{[%clk 0:03:09.7]} 13. Ne4 {[%clk 0:02:37.6]} 13... Nd7 {[%clk 0:03:07.9]} 14.
Neg5 {[%clk 0:02:32.9]} 14... Nxe5 {[%clk 0:02:40.2]} 15. Bxh7+ {[%clk
0:02:28.9]} 15... Kh8 {[%clk 0:02:41.4]} 16. Nxe5 {[%clk 0:02:24.9]} 16... Qxg5
{[%clk 0:02:41.9]} 17. f4 {[%clk 0:02:17.2]} 17... Qh6 {[%clk 0:02:37.4]} 18.
Bd3 {[%clk 0:02:08.4]} 18... Kg8 {[%clk 0:02:38.3]} 19. Qg4 {[%clk 0:02:00.7]}
19... Nf6 {[%clk 0:02:38.7]} 20. Qg5 {[%clk 0:02:02]} 20... b6 {[%clk
0:02:24.7]} 21. Rf3 {[%clk 0:01:36.6]} 21... Qxg5 {[%clk 0:02:20.6]} 22. fxg5
{[%clk 0:01:38.5]} 22... Nd7 {[%clk 0:02:22.3]} 23. Rxf8+ {[%clk 0:01:29.4]}
23... Nxf8 {[%clk 0:01:56.2]} 24. Rf1 {[%clk 0:01:30.2]} 24... Bb7 {[%clk
0:01:51.3]} 25. Rf7 {[%clk 0:01:20.3]} 25... Bd5 {[%clk 0:01:52.6]} 1/2-1/2

[Event "*** Titled Tuesday 3|2 Blitz (Late)"]
[Site "Chess.com"]
[Date "2016.12.06"]
[Round "9"]
[White "MattyDPerrine"]
[Black "Bishops83"]
[Result "0-1"]
[WhiteElo "2237"]
[BlackElo "2295"]
[TimeControl "180+2"]
[EndTime "18:47:16 PST"]
[Termination "Bishops83 won by resignation"]

1. d4 {[%clk 0:03:02]} 1... d5 {[%clk 0:02:59.6]} 2. c4 {[%clk 0:02:57.2]} 2...
e6 {[%clk 0:02:58.8]} 3. Nc3 {[%clk 0:02:57.4]} 3... c6 {[%clk 0:02:56.3]} 4. e4
{[%clk 0:02:47.3]} 4... dxe4 {[%clk 0:02:55.4]} 5. Nxe4 {[%clk 0:02:49.2]} 5...
Bb4+ {[%clk 0:02:55.4]} 6. Bd2 {[%clk 0:02:50.7]} 6... Qxd4 {[%clk 0:02:51.3]}
7. Bxb4 {[%clk 0:02:51.8]} 7... Qxe4+ {[%clk 0:02:51.4]} 8. Be2 {[%clk
0:02:52.9]} 8... Qxg2 {[%clk 0:02:29.5]} 9. Qd2 {[%clk 0:02:53.6]} 9... Qxh1
{[%clk 0:01:49.8]} 10. Qg5 {[%clk 0:02:36.2]} 10... Qxh2 {[%clk 0:01:36.2]} 11.
Qxg7 {[%clk 0:02:29.2]} 11... Nd7 {[%clk 0:01:32.4]} 12. O-O-O {[%clk
0:00:44.9]} 12... Qh6+ {[%clk 0:01:28]} 0-1